bitfinex/quotes_ETHUSD_20251021
["timestamp","ask_amount","ask_price","bid_price","bid_amount"]
[1761014234349,0.4493,3949.3,3948.6,2.53253355]
[1761014234926,0.1264,3948.8,3948.6,2.53253355]
[1761014235121,0.1264,3948.8,3948.7,2.53247904]
[1761014235347,0.1264,3948.8,3948.5,1.835]
[1761014235539,0.5757,3948.8,3948.6,3.243]
[1761014236117,0.5757,3948.8,3948.4,0.002]
[1761014236118,0.1264,3948.8,3948.4,0.002]
[1761014236318,0.4739,3948.7,3948.4,3.244]
[1761014236949,0.1264,3948.8,3948.4,3.244]
[1761014237151,0.4739,3948.7,3948.4,3.244]
[1761014237736,0.4739,3948.7,3948.4,5.77664673]
[1761014238347,0.4739,3948.7,3948.5,2.53260175]
[1761014238557,0.1264,3948.8,3948.4,5.77566287]
[1761014238865,0.6003,3948.8,3948.4,5.77566287]
[1761014240458,0.6003,3948.8,3948.5,2.53260511]
[1761014240962,0.6003,3948.8,3948.4,5.77565246]
[1761014241334,0.6003,3948.8,3948.5,3.24]
[1761014243936,0.1264,3948.8,3948.4,0.002]
[1761014244141,0.4739,3948.7,3948.5,3.239]
[1761014244734,0.4739,3948.7,3948.4,0.002]
[1761014245146,2.2019,3948.7,3948.4,0.002]
[1761014245450,0.47343582,3948.6,3948.4,0.002]
[1761014245764,0.94733582,3948.6,3948.4,0.002]
[1761014245977,0.4739,3948.5,3948.4,0.002]
[1761014250149,6.31327931,3948.5,3948.4,0.002]
[1761014250479,8.04127931,3948.5,3948.4,0.002]
[1761014250648,9.64260079,3948.5,3948.4,0.002]
[1761014251175,14.19037179,3948.5,3948.4,0.002]
[1761014252253,14.00498779,3948.5,3948.4,0.002]
[1761014252448,8.67897279,3948.5,3948.4,0.002]
[1761014253255,11.51571179,3948.5,3948.4,0.002]
[1761014253683,10.49691179,3948.5,3948.4,0.002]
[1761014254156,12.21776779,3948.5,3948.4,0.002]
[1761014254353,11.00276779,3948.5,3948.4,0.002]
[1761014255169,13.14714279,3948.5,3948.4,0.002]
[1761014255676,14.45362297,3948.5,3948.4,0.002]
[1761014256075,14.4977734,3948.5,3948.4,0.002]
[1761014256281,29.7029834,3948.5,3948.4,0.002]
[1761014256580,26.49169197,3948.5,3948.4,0.002]
[1761014257274,28.99325597,3948.5,3948.4,0.002]
[1761014257986,22.20296697,3948.5,3948.4,0.002]
[1761014258189,17.48946012,3948.5,3948.4,0.002]
[1761014258361,20.69022012,3948.5,3948.4,0.002]
[1761014259290,30.76437112,3948.5,3948.4,0.002]
[1761014259492,30.29083659,3948.5,3948.4,0.002]
[1761014259660,28.69728159,3948.5,3948.4,0.002]
[1761014260283,7.29842559,3948.5,3948.4,0.002]
[1761014260489,30.29433359,3948.5,3948.4,0.002]
[1761014261286,7.29842559,3948.5,3948.4,0.002]
[1761014261491,32.12712759,3948.5,3948.4,0.002]
[1761014262393,13.06441226,3948.5,3948.4,0.002]
[1761014262690,12.42069226,3948.5,3948.4,0.002]
[1761014262992,11.79026726,3948.5,3948.4,0.002]
[1761014263157,9.14408026,3948.5,3948.4,0.002]
[1761014263364,6.61147295,3948.5,3948.4,0.002]
[1761014263558,5.01015147,3948.5,3948.4,0.002]
[1761014263768,25.11726478,3948.5,3948.4,0.002]
[1761014263973,22.12876778,3948.5,3948.4,0.002]
[1761014264170,21.63542278,3948.5,3948.4,0.002]
[1761014264369,21.28013378,3948.5,3948.4,0.002]
[1761014264619,2.53203018,3949.4,3948.4,0.4616]
[1761014264797,4.500486,3949.2,3948.4,0.4616]
[1761014265095,3.238,3949.3,3948.4,0.4616]
[1761014265096,0.0441438,3949.1,3948.4,0.4616]
[1761014267090,0.4605,3949.0,3948.4,0.002]
[1761014267394,1.728,3948.8,3948.4,0.002]
[1761014267783,1.728,3948.8,3948.4,0.4616]
[1761014268512,1.728,3948.8,3948.4,0.002]
[1761014269418,2.1885,3948.8,3948.4,0.002]
[1761014269607,1.728,3948.6,3948.4,0.002]
[1761014271021,1.728,3948.8,3948.4,0.002]
[1761014271219,1.728,3948.8,3948.4,0.4616]
[1761014271820,1.728,3948.8,3948.5,0.4596]
[1761014273423,0.1264,3948.5,3948.4,0.002]
[1761014274224,0.1264,3948.5,3948.4,0.4616]
[1761014274823,0.1264,3948.5,3948.4,0.002]
[1761014276123,0.1264,3948.5,3948.4,0.4616]
[1761014276490,0.1264,3948.5,3948.4,0.002]
[1761014277725,0.1264,3948.5,3948.4,0.4616]
[1761014279119,0.1264,3948.5,3948.4,2.53467146]
[1761014279287,0.1264,3948.5,3948.4,2.99427146]
[1761014279690,0.1264,3948.5,3948.4,3.54697386]
[1761014279916,1.728,3949.1,3948.8,2.53237176]
[1761014280125,0.1264,3948.8,3948.7,2.53247904]
[1761014280629,0.1264,3948.8,3948.7,2.96827904]
[1761014283735,1.728,3949.4,3949.1,2.53218652]
[1761014284233,0.1264,3949.1,3949.0,0.1602]
[1761014284620,0.1264,3949.1,3949.0,2.69248665]
[1761014284821,0.1264,3949.1,3948.5,0.4358]
[1761014285113,0.1264,3948.9,3948.8,2.53237186]
[1761014285313,0.1264,3948.9,3948.2,2.53276397]
[1761014285314,0.1264,3948.9,3948.7,5.76946599]
[1761014285736,0.1264,3948.9,3948.8,2.53241491]
[1761014286045,0.1264,3948.9,3948.8,2.96821491]
[1761014286548,0.1264,3948.9,3948.8,3.84199045]
[1761014287615,0.1264,3948.9,3948.8,3.86731459]
[1761014287809,0.1264,3948.9,3948.8,2.53241491]
[1761014288018,0.1264,3948.9,3948.7,3.237]
[1761014288213,0.1264,3948.9,3948.4,0.002]
[1761014288431,0.5964,3948.9,3948.5,5.76955551]
[1761014289120,0.1264,3948.9,3948.6,2.53253245]
[1761014289425,0.1264,3948.9,3948.5,3.6728]
[1761014289624,0.1264,3948.9,3948.6,2.53249369]
[1761014289953,0.1264,3948.9,3948.7,2.53245442]
[1761014290164,0.1264,3948.9,3948.8,2.53241491]
[1761014290316,0.1264,3948.9,3948.8,2.96821491]
[1761014290712,0.1264,3948.9,3948.5,0.002]
[1761014290924,0.1264,3948.9,3948.5,2.722]
[1761014291119,0.1264,3948.9,3948.5,5.25455284]
[1761014291352,0.5964,3948.9,3948.5,5.25455284]
[1761014291516,0.1264,3948.9,3948.6,2.5325085]
[1761014292473,2.53291297,3949.6,3948.5,0.002]
[1761014292474,0.47,3948.8,3948.5,0.002]
[1761014292748,0.1264,3948.6,3948.5,0.002]
[1761014294448,0.1264,3948.6,3948.5,2.53460731]
[1761014294673,0.1264,3948.6,3948.5,2.97040731]
[1761014295419,0.1264,3948.6,3948.5,2.99573338]
[1761014295722,0.1264,3948.6,3948.5,2.53460731]
[1761014295933,0.1264,3948.6,3948.5,2.97040731]
[1761014296350,0.1264,3948.6,3948.5,3.84462061]
[1761014297215,0.1264,3948.6,3948.5,3.86994668]
[1761014298863,0.001,3949.6,3949.1,2.53221496]
[1761014299562,0.4516,3949.6,3949.1,2.53221496]
[1761014300358,0.4516,3949.6,3949.2,2.53212319]
[1761014300555,0.4516,3949.6,3949.1,2.53220589]
[1761014300865,1.01929357,3949.6,3949.1,2.53220589]
[1761014301073,0.1264,3949.1,3949.0,2.53226842]
[1761014301267,0.1264,3949.1,3948.9,2.53234904]
[1761014301448,0.577,3949.1,3948.9,2.53234904]
[1761014301770,0.1264,3949.1,3948.9,2.53234904]
[1761014301961,0.1264,3949.1,3949.0,2.53228665]
[1761014305698,0.1264,3949.1,3949.0,2.98398665]
[1761014306513,0.1264,3949.1,3949.0,6.21998665]
[1761014307165,0.001,3949.6,3949.0,6.21998665]
[1761014307166,0.001,3949.6,3949.3,2.53203583]
[1761014307368,0.1264,3949.5,3949.4,2.53197033]
[1761014307994,0.1264,3949.5,3949.4,5.76797033]
[1761014308212,0.001,3949.6,3949.5,2.53196607]
[1761014308367,0.001,3949.6,3949.5,4.12468555]
[1761014310885,0.001,3949.6,3949.5,6.90898555]
[1761014312470,0.001,3949.6,3949.5,12.0044633]
[1761014312677,0.001,3949.6,3949.5,12.6377433]
[1761014314569,0.001,3949.6,3949.5,12.6367433]
[1761014316697,0.001,3949.6,3949.5,13.55692342]
[1761014318506,0.001,3949.6,3949.5,15.28492342]
[1761014320735,0.001,3949.6,3949.5,15.28392342]
[1761014322819,0.001,3949.6,3949.5,12.30352342]
[1761014323016,0.001,3949.6,3949.5,15.53752342]
[1761014324210,0.001,3949.6,3949.5,9.73916555]
[1761014325111,0.001,3949.6,3949.5,9.99276555]
[1761014328030,0.001,3949.6,3949.5,9.99476555]
[1761014331825,0.001,3949.6,3949.5,5.03276555]
[1761014332033,0.001,3949.6,3949.5,7.54126555]
[1761014332730,0.001,3949.6,3949.5,7.79486555]
[1761014333327,0.001,3949.6,3949.5,2.66036607]
[1761014333542,0.4379,3949.6,3949.5,5.89336607]
[1761014334044,0.4379,3949.6,3949.5,2.66036607]
[1761014334247,0.001,3949.6,3949.5,5.89336607]
[1761014337219,0.001,3949.6,3949.5,6.36426607]
[1761014337620,0.001,3949.6,3949.5,7.25388971]
[1761014338729,0.001,3949.6,3949.5,7.76076971]
[1761014340752,0.001,3949.6,3949.5,13.30552758]
[1761014342435,0.001,3949.6,3949.5,7.28986971]
[1761014342848,0.001,3949.6,3949.5,7.54346971]
[1761014344470,0.001,3949.6,3949.5,7.99936971]
[1761014346141,0.001,3949.6,3949.5,4.31046971]
[1761014346363,0.001,3949.6,3949.5,7.03658971]
[1761014346781,0.001,3949.6,3949.5,6.78298971]
[1761014347043,0.4569,3949.6,3949.5,5.89336607]
[1761014348580,0.4569,3949.6,3949.5,7.62136607]
[1761014352889,0.001,3949.6,3949.5,5.89336607]
[1761014355882,0.001,3949.6,3949.5,12.12342394]
[1761014356088,0.001,3949.6,3949.5,6.95914607]
[1761014356289,0.001,3949.6,3949.5,8.03465771]
[1761014357661,0.001,3949.6,3949.5,7.60295771]
[1761014358161,0.001,3949.6,3949.5,8.03465771]
[1761014360142,0.001,3949.6,3949.5,7.60295771]
[1761014360527,0.001,3949.6,3949.5,7.34835771]
[1761014360528,0.4652,3949.6,3949.5,7.34835771]
[1761014360905,0.001,3949.6,3949.5,7.34835771]
[1761014361106,0.001,3949.6,3949.5,4.36995771]
[1761014361443,0.001,3949.6,3949.5,7.60195771]
[1761014364212,0.001,3949.6,3949.5,8.03365771]
[1761014366405,0.001,3949.6,3949.5,6.14596607]
[1761014367621,0.001,3949.6,3949.5,5.89236607]
[1761014367821,0.4652,3949.6,3949.5,5.89236607]
[1761014368424,0.4652,3949.6,3949.5,5.89136607]
[1761014368840,0.001,3949.6,3949.5,5.89136607]
[1761014369045,0.4652,3949.6,3949.5,5.89136607]
[1761014370120,0.4652,3949.6,3949.5,0.002]
[1761014370715,0.4652,3949.6,3949.5,3.233]
[1761014372314,0.4652,3949.6,3949.5,0.002]
[1761014372515,0.4652,3949.6,3949.5,3.233]
[1761014373125,0.4652,3949.6,3949.5,0.002]
[1761014373325,0.4652,3949.6,3949.5,3.233]
[1761014373533,0.4652,3949.6,3949.5,0.002]
[1761014374233,0.9597826,3949.6,3949.5,0.002]
[1761014374953,0.4652,3949.6,3949.5,0.002]
[1761014377450,0.001,3949.6,3949.5,0.002]
[1761014377632,0.4569,3949.6,3949.5,2.55928573]
[1761014377948,0.4569,3949.6,3949.5,2.53396607]
[1761014378953,0.4569,3949.6,3949.5,0.002]
[1761014379560,0.001,3949.6,3949.5,0.002]
[1761014379858,0.001,3949.6,3949.5,2.85726607]
[1761014380219,0.001,3949.6,3949.5,2.98366607]
[1761014382606,0.001,3949.6,3949.5,3.00898573]
[1761014383083,0.001,3949.6,3949.5,2.98366607]
[1761014384542,0.4569,3949.6,3949.5,2.98366607]
[1761014385076,0.001,3949.6,3949.5,2.98366607]
[1761014386953,0.001,3949.6,3949.5,0.1284]
[1761014387177,0.4569,3949.6,3949.5,5.76496607]
[1761014391794,0.4569,3949.6,3949.5,2.53396607]
[1761014391993,0.001,3949.6,3949.5,5.76496607]
[1761014392365,0.4569,3949.6,3949.5,5.76496607]
[1761014394004,0.4569,3949.6,3949.5,2.53396607]
[1761014394298,0.4569,3949.6,3949.5,5.76396607]
[1761014394496,0.4569,3949.6,3949.5,0.002]
[1761014394699,0.4569,3949.6,3949.5,3.232]
[1761014395301,0.4569,3949.6,3949.5,5.76396607]
[1761014396402,0.001,3949.6,3949.5,5.76396607]
[1761014397726,0.4569,3949.6,3949.5,5.76396607]
[1761014401770,0.4569,3949.6,3949.5,2.53396607]
[1761014401973,0.4569,3949.6,3949.5,5.76396607]
[1761014402507,0.4569,3949.6,3949.5,0.002]
[1761014402871,0.95036228,3949.6,3949.5,0.002]
[1761014403071,0.4569,3949.6,3949.5,0.002]
[1761014405500,0.4304,3949.6,3949.5,2.53396607]
[1761014406319,0.4304,3949.6,3949.5,0.002]
[1761014407220,0.4304,3949.6,3949.5,3.232]
[1761014409883,0.4304,3949.6,3949.5,0.002]
[1761014411216,0.4304,3949.6,3949.5,2.53396607]
[1761014413027,0.001,3949.6,3949.5,2.53396607]
[1761014413319,0.4304,3949.6,3949.5,2.53396607]
[1761014413706,0.001,3949.6,3949.5,2.53396607]
[1761014413908,0.4304,3949.6,3949.5,2.53396607]
[1761014414594,0.001,3949.6,3949.5,2.53396607]
[1761014415219,0.1274,3949.6,3949.5,2.53396607]
[1761014418754,0.5709,3949.6,3949.5,2.53396607]
[1761014420727,0.1274,3949.6,3949.5,2.53396607]
[1761014422483,0.001,3949.6,3949.5,3.38888873]
[1761014422654,0.001,3949.6,3949.5,3.83958873]
[1761014422844,0.001,3949.6,3949.5,3.81426907]
[1761014423159,0.001,3949.6,3949.5,3.94066907]
[1761014423725,0.001,3949.6,3949.5,4.06706907]
[1761014430968,0.001,3949.6,3949.5,3.61636907]
[1761014431269,0.001,3949.6,3949.5,6.84436907]
[1761014431457,0.001,3949.6,3949.5,3.61636907]
[1761014431665,0.001,3949.6,3949.5,6.84436907]
[1761014431956,0.001,3949.6,3949.5,3.61636907]
[1761014432161,0.001,3949.6,3949.5,6.84436907]
[1761014434483,0.001,3949.6,3949.5,7.29386907]
[1761014437185,0.001,3949.6,3949.5,6.84436907]
[1761014438275,0.001,3949.6,3949.5,6.84336907]
[1761014440785,0.001,3949.6,3949.5,3.61636907]
[1761014441085,0.001,3949.6,3949.5,6.84336907]
[1761014442680,0.001,3949.6,3949.5,6.71696907]
[1761014446388,0.001,3949.6,3949.5,7.67334907]
[1761014446602,0.001,3949.6,3949.5,7.92694907]
[1761014446773,0.001,3949.6,3949.5,8.02843855]
[1761014449203,0.001,3949.6,3949.5,11.82843855]
[1761014452114,0.001,3949.6,3949.5,11.82743855]
[1761014453586,0.001,3949.6,3949.5,8.60143855]
[1761014453801,0.001,3949.6,3949.5,14.49743855]
[1761014457932,0.001,3949.6,3949.5,20.04476559]
[1761014458132,0.001,3949.6,3949.5,16.24476559]
[1761014459533,0.001,3949.6,3949.5,19.34166559]
[1761014459735,0.001,3949.6,3949.5,19.79116559]
[1761014460730,0.001,3949.6,3949.5,16.56516559]
[1761014460932,0.001,3949.6,3949.5,19.79016559]
[1761014461119,0.001,3949.6,3949.5,16.56516559]
[1761014461429,0.001,3949.6,3949.5,19.79016559]
[1761014461930,0.001,3949.6,3949.5,21.51816559]
[1761014462133,1e-08,3950.4,3950.3,8.58566034]
[1761014462335,1e-08,3950.4,3950.3,12.92237978]
[1761014462515,1e-08,3950.4,3950.3,13.36647978]
[1761014463414,1e-08,3950.4,3950.3,13.82287978]
[1761014465115,1e-08,3950.4,3950.3,13.37877978]
[1761014467246,1e-08,3950.4,3950.3,7.83145274]
[1761014469919,1e-08,3950.4,3950.3,8.27555274]
[1761014471154,1e-08,3950.4,3950.3,8.27755274]
[1761014472117,1e-08,3950.4,3950.3,8.40395274]
[1761014475530,1e-08,3950.4,3950.3,12.80195274]
[1761014483479,0.001,3950.8,3950.7,2.531197]
[1761014483638,3.16481119,3955.3,3952.1,2.53030034]
[1761014483639,0.4404,3952.2,3952.1,2.53030034]
[1761014483841,0.4404,3952.2,3952.1,5.77760334]
[1761014484061,0.4404,3952.2,3952.1,5.87870034]
[1761014484260,0.39686968,3952.7,3952.6,2.52998026]
[1761014484466,0.39686968,3952.7,3952.6,5.75198026]
[1761014484640,0.39686968,3952.7,3952.6,5.87838026]
[1761014486042,0.2186,3954.1,3952.6,6.71922451]
[1761014486268,0.2213,3954.2,3953.6,5.54732704]
[1761014486573,0.2213,3953.7,3952.7,2.23488]
[1761014486750,0.2213,3953.7,3953.6,2.52934034]
[1761014486944,0.2213,3953.7,3953.6,5.75134034]
[1761014489769,0.2223,3953.7,3953.6,5.75134034]
[1761014491602,0.2223,3953.7,3953.6,5.75034034]
[1761014493197,0.2223,3953.7,3953.6,2.52934034]
[1761014493398,0.2223,3953.7,3953.6,5.75034034]
[1761014496180,0.2223,3953.7,3953.6,5.87674034]
[1761014496896,0.2223,3953.7,3953.6,2.65574034]
[1761014497098,0.2223,3953.7,3953.6,5.87574034]
[1761014501794,0.001,3953.7,3953.6,5.87574034]
[1761014505027,0.001,3953.7,3953.4,2.52946024]
[1761014505195,0.001,3953.7,3953.6,2.52934034]
[1761014505622,0.001,3953.7,3953.6,5.74834034]
[1761014507632,0.001,3953.7,3953.6,5.75034034]
[1761014512221,2.57260095,3954.9,3953.6,5.75034034]
[1761014512222,1.728,3954.7,3953.6,4.04898006]
[1761014512408,3.16481119,3957.4,3953.6,4.04898006]
[1761014512409,4.730627,3954.8,3954.7,2.52860659]
[1761014512612,0.231,3954.8,3954.7,5.74760659]
[1761014512843,0.231,3954.8,3954.7,3.219]
[1761014513060,0.231,3954.8,3953.2,5.30442659]
[1761014513260,0.231,3954.8,3954.1,0.231]
[1761014513437,0.231,3954.8,3954.3,2.52887672]
[1761014513776,0.231,3954.8,3954.4,3.219]
[1761014514663,0.231,3954.8,3953.6,0.002]
[1761014514855,0.231,3954.8,3954.0,2.52908404]
[1761014515050,0.3574,3954.8,3954.1,3.3454]
[1761014515261,0.3574,3954.8,3954.4,2.52881491]
[1761014515462,0.3574,3954.8,3954.4,5.74781491]
[1761014516053,0.3574,3954.8,3954.4,2.52881491]
[1761014516256,0.3574,3954.8,3954.4,5.74781491]
[1761014516477,0.3574,3954.8,3954.5,2.52873662]
[1761014517665,0.3574,3954.8,3954.4,5.74782597]
[1761014517868,0.3574,3954.8,3954.5,2.52874937]
[1761014518739,0.3574,3954.8,3954.4,3.219]
[1761014518740,0.3574,3954.8,3954.4,5.74781748]
[1761014519545,0.3574,3954.8,3954.5,2.52874381]
[1761014519970,0.3574,3954.8,3954.6,2.5286921]
[1761014520741,0.3574,3954.8,3954.5,2.52875749]
[1761014521375,0.3574,3954.8,3954.4,3.219]
[1761014521376,0.3574,3954.8,3954.7,2.52863681]
[1761014521582,0.3574,3954.8,3954.4,3.219]
[1761014521745,0.3574,3954.8,3954.7,2.52863681]
[1761014522072,0.3574,3954.8,3954.7,5.74663681]
[1761014522472,0.231,3954.8,3954.7,3.218]
[1761014525752,0.231,3954.8,3954.5,2.52876153]
[1761014525977,0.231,3954.8,3954.6,3.218]
[1761014526546,0.231,3954.8,3954.0,2.52907903]
[1761014526747,0.44875595,3954.7,3954.1,5.74701794]
[1761014527046,0.44875595,3954.7,3954.1,3.218]
[1761014527460,0.44875595,3954.7,3954.1,2.52896668]
[1761014527661,0.44875595,3954.7,3954.2,3.218]
[1761014528988,0.44875595,3954.7,3954.1,2.52896668]
[1761014529194,0.44875595,3954.7,3954.2,3.218]
[1761014530598,0.232,3954.8,3954.2,5.74690439]
[1761014531528,0.232,3954.8,3954.2,3.218]
[1761014532600,0.1264,3954.3,3954.2,3.218]
[1761014533772,0.232,3954.8,3954.2,5.77224611]
[1761014533971,0.1264,3954.5,3954.3,2.52887836]
[1761014534491,0.1264,3954.5,3954.2,3.218]
[1761014534492,0.1264,3954.5,3954.2,5.74692241]
[1761014534688,0.1264,3954.5,3954.3,2.52888928]
[1761014536720,0.1264,3954.5,3954.3,2.52889259]
[1761014538024,0.1264,3954.5,3954.3,2.52882948]
[1761014538717,0.1256,3954.4,3954.3,2.52882948]
[1761014539092,0.1256,3954.4,3954.2,3.218]
[1761014539419,0.1256,3954.4,3954.2,5.74693915]
[1761014539921,0.1264,3954.5,3953.9,0.1284]
[1761014539922,0.1256,3954.3,3953.9,0.1284]
[1761014540096,0.252,3954.3,3954.0,3.218]
[1761014540497,0.1256,3954.2,3954.0,5.74703899]
[1761014540707,0.1256,3954.2,3954.0,3.218]
[1761014540891,0.1264,3954.3,3954.0,3.218]
[1761014541225,0.1264,3954.3,3954.2,2.52895655]
[1761014541803,0.252,3954.3,3954.2,2.52895655]
[1761014541999,0.252,3954.3,3954.2,3.218]
[1761014542920,0.45,3954.3,3954.1,3.218]
[1761014543090,0.1256,3954.2,3954.1,3.218]
[1761014543292,0.1256,3954.2,3953.9,0.002]
[1761014543611,0.1264,3954.0,3953.9,3.22]
[1761014543829,0.1264,3954.0,3953.9,0.002]
[1761014544130,19.255135,3954.0,3953.9,0.002]
[1761014544530,21.78421947,3954.0,3953.9,0.002]
[1761014544705,32.47127147,3954.0,3953.9,0.002]
[1761014545035,21.64515147,3954.0,3953.9,0.002]
[1761014545342,20.59892947,3954.0,3953.9,0.002]
[1761014545633,21.45761147,3954.0,3953.9,0.002]
[1761014546622,21.50396447,3954.0,3953.9,0.002]
[1761014546790,22.01084447,3954.0,3953.9,0.002]
[1761014547590,26.42367147,3954.0,3953.9,0.002]
[1761014548631,4.280964,3954.0,3953.9,0.002]
[1761014548926,4.054642,3954.0,3953.9,0.002]
[1761014549130,1.8536,3954.0,3953.9,0.002]
[1761014549333,0.1256,3954.4,3953.9,0.002]
[1761014551757,1.728,3954.3,3953.9,0.002]
[1761014551906,0.1256,3954.3,3953.9,0.002]
[1761014552238,1.8536,3954.3,3953.9,0.002]
[1761014552808,0.1256,3954.3,3953.9,0.002]
[1761014553032,1.728,3954.5,3953.9,0.002]
[1761014553236,2.503072,3954.5,3953.9,0.002]
[1761014553438,5.03183896,3954.5,3953.9,0.002]
[1761014553637,5.15743896,3954.5,3953.9,0.002]
[1761014553843,0.1256,3954.4,3953.9,0.002]
[1761014560769,0.1264,3954.0,3953.9,0.002]
[1761014561275,4.50908447,3954.0,3953.9,0.002]
[1761014561461,14.50348992,3954.0,3953.9,0.002]
[1761014561762,14.20498992,3954.0,3953.9,0.002]
[1761014561944,19.34471492,3954.0,3953.9,0.002]
[1761014562146,19.38879787,3954.0,3953.9,0.002]
[1761014562459,19.34471492,3954.0,3953.9,0.002]
[1761014562962,23.00750192,3954.0,3953.9,0.002]
[1761014563531,22.14130992,3954.0,3953.9,0.002]
[1761014563732,22.69309137,3953.7,3953.6,0.002]
[1761014564040,29.96176496,3953.7,3953.6,0.002]
[1761014564238,30.31606496,3953.7,3953.6,0.002]
[1761014564662,28.84007696,3953.7,3953.6,0.002]
[1761014564855,31.85957296,3953.7,3953.6,0.002]
[1761014565358,30.81116888,3953.7,3953.6,0.002]
[1761014565566,27.43451888,3953.7,3953.6,0.002]
[1761014565944,26.70378088,3953.7,3953.6,0.002]
[1761014566143,25.60509088,3953.7,3953.6,0.002]
[1761014566345,20.40149388,3953.7,3953.6,0.002]
[1761014567061,29.33527688,3953.7,3953.6,0.002]
[1761014567361,25.19407288,3953.7,3953.6,0.002]
[1761014568062,27.20735988,3953.7,3953.6,0.002]
[1761014568237,27.16327096,3953.7,3953.6,0.002]
[1761014568755,25.48108796,3953.7,3953.6,0.002]
[1761014568976,26.92155196,3953.7,3953.6,0.002]
[1761014569937,4.25734034,3953.6,3953.5,0.002]
[1761014570265,23.29993634,3953.6,3953.5,0.002]
[1761014571174,23.29993634,3953.6,3953.2,0.002]
[1761014571175,28.73762528,3953.3,3953.2,0.002]
[1761014571330,31.29322928,3953.3,3953.2,0.002]
[1761014571668,31.29322928,3953.3,3951.5,2.53066885]
[1761014571669,1.728,3951.8,3950.7,0.2531197]
[1761014571871,1.728,3952.0,3951.2,2.98966014]
[1761014572031,4.2583902,3952.0,3951.2,0.4588]
[1761014572235,1.728,3951.8,3951.3,0.4588]
[1761014573037,2.5303852,3952.0,3950.9,0.2254]
[1761014573238,1.728,3951.8,3951.0,2.53098421]
[1761014573451,2.75458044,3951.9,3950.9,0.6842]
[1761014573663,1.02658044,3951.9,3951.0,0.4588]
[1761014573981,2.5305425,3951.8,3951.0,0.4588]
[1761014574739,1.728,3951.6,3951.0,0.4588]
[1761014575843,1.728,3951.7,3951.0,0.4588]
[1761014576242,2.53056193,3951.7,3951.0,0.4588]
[1761014576575,1.728,3951.8,3951.0,0.4588]
[1761014576576,4.25849578,3951.8,3951.0,0.4588]
[1761014576763,2.53057094,3951.7,3951.0,0.4588]
[1761014577059,2.53064622,3951.6,3951.0,0.4588]
[1761014577447,1.728,3951.1,3950.5,0.4588]
[1761014577663,1.728,3951.1,3950.7,0.4588]
[1761014577864,2.5309556,3951.1,3950.7,0.4588]
[1761014578161,2.64022052,3951.0,3950.3,0.002]
[1761014578360,1.8372,3951.0,3950.3,0.4608]
[1761014579279,1.728,3951.0,3950.3,2.99224742]
[1761014579446,1.728,3951.0,3950.3,0.4608]
[1761014579646,1.728,3951.0,3950.4,0.4588]
[1761014579973,0.1264,3950.8,3950.4,0.4588]
[1761014582493,2.53122207,3950.7,3950.3,0.002]
[1761014582810,0.1264,3950.5,3950.3,0.002]
[1761014583276,4.38218922,3950.4,3950.3,0.002]
[1761014585775,21.46958822,3950.4,3950.3,0.002]
[1761014587595,28.51009022,3950.4,3950.3,0.002]
[1761014587786,26.87930822,3950.4,3950.3,0.002]
[1761014587990,23.33928898,3950.4,3950.3,0.002]
[1761014588194,2.53158147,3950.1,3950.0,0.002]
[1761014588380,33.09896347,3950.1,3950.0,0.002]
[1761014588569,32.68084647,3950.1,3950.0,0.002]
[1761014588772,33.13175492,3950.1,3950.0,0.002]
[1761014588972,33.23329283,3950.1,3950.0,0.002]
[1761014589380,33.23329283,3950.1,3948.7,0.002]
[1761014589381,2.53170966,3949.9,3948.7,0.002]
[1761014589706,1.728,3949.1,3948.7,0.002]
[1761014589902,11.21341853,3949.1,3948.7,0.002]
[1761014590478,11.47057397,3949.1,3948.7,0.002]
[1761014590676,18.11204897,3949.1,3948.7,0.002]
[1761014591303,18.61892897,3949.1,3948.7,0.002]
[1761014591512,20.74662506,3949.1,3948.7,0.002]
[1761014591809,25.75624406,3949.1,3948.7,0.002]
[1761014592809,29.20888906,3949.1,3948.7,0.002]
[1761014593107,21.83838306,3949.1,3948.7,0.002]
[1761014593308,14.24158306,3949.1,3948.7,0.002]
[1761014593509,13.83989606,3949.1,3948.7,0.002]
[1761014593692,17.58974806,3949.1,3948.7,0.002]
[1761014594728,10.37095406,3949.1,3948.7,0.002]
[1761014594913,21.71379606,3949.1,3948.7,0.002]
[1761014595786,26.00845006,3949.1,3948.7,0.002]
[1761014595982,17.90465806,3949.1,3948.7,0.002]
[1761014596188,17.43340106,3949.1,3948.7,0.002]
[1761014596808,17.42720106,3949.1,3948.7,0.002]
[1761014597921,26.92880206,3949.1,3948.7,0.002]
[1761014598222,21.28911306,3949.1,3948.7,0.002]
[1761014599141,27.75315406,3949.1,3948.7,0.002]
[1761014600020,27.69802406,3949.1,3948.7,0.002]
[1761014601002,33.14688406,3949.1,3948.7,0.002]
[1761014601201,31.85045706,3949.1,3948.7,0.002]
[1761014602018,40.37095406,3949.1,3948.7,0.002]
[1761014604326,40.76822561,3949.1,3948.7,0.002]
[1761014604525,40.37095406,3949.1,3948.7,0.002]
[1761014605054,10.37095406,3949.1,3948.7,0.002]
[1761014605207,2.53241491,3948.8,3948.7,0.002]
[1761014605541,37.98729491,3948.8,3948.7,0.002]
[1761014605731,38.12799491,3948.8,3948.7,0.002]
[1761014605905,38.17214428,3948.8,3948.7,0.002]
[1761014606603,26.28773628,3948.8,3948.7,0.002]
[1761014606832,26.73864473,3948.8,3948.7,0.002]